bitfinex-derivatives/quotes_SOLF0:USTF0_20251119
["timestamp","ask_amount","ask_price","bid_price","bid_amount"]
[1763532827968,0.05007747,138.2,138.18,0.0540258]
[1763532828763,3.28007747,138.2,138.18,0.0540258]
[1763532829765,0.05007747,138.2,138.18,6.5724258]
[1763532831765,3.23,138.23,138.19,6.5178]
[1763532831963,48.0651,138.26,138.18,0.0540258]
[1763532832166,48.0651,138.26,138.18,6.77869031]
[1763532832367,3.23,138.25,138.18,0.0540258]
[1763532832774,3.28075469,138.23,138.18,0.0540258]
[1763532833080,0.05075469,138.23,138.2,6.5176]
[1763532833668,0.05075469,138.23,138.21,6.517]
[1763532834576,3.23,138.29,138.22,101.3709]
[1763532834879,3.23,138.29,138.23,101.3611]
[1763532835082,3.23,138.29,138.26,6.5147]
[1763532835473,3.23,138.29,138.21,11.84274055]
[1763532835680,3.28351361,138.29,138.26,0.04978128]
[1763532835876,3.28278318,138.29,138.26,0.04983187]
[1763532837573,3.23,138.28,138.26,0.04983187]
[1763532840481,3.23,138.27,138.2,6.5174]
[1763532841586,3.23,138.24,138.22,0.04566098]
[1763532843183,0.05471311,138.25,138.22,6.56226098]
[1763532844488,3.23471311,138.25,138.22,0.04566098]
[1763532846586,0.05471311,138.25,138.22,0.04566098]
[1763532846776,3.18,138.33,138.22,0.04566098]
[1763532846983,3.18,138.33,138.22,108.08386366]
[1763532847282,3.18,138.33,138.23,101.3623]
[1763532847586,3.18,138.33,138.23,108.07716366]
[1763532847786,0.04863382,138.29,138.27,0.04982617]
[1763532849990,3.22863382,138.29,138.27,0.04982617]
[1763532852694,0.04863382,138.29,138.27,0.04982617]
[1763532853595,3.22863382,138.29,138.27,0.04982617]
[1763532854399,3.22863382,138.29,138.22,6.5166]
[1763532855501,3.22863382,138.29,138.24,0.04587761]
[1763532856303,9.74223382,138.29,138.24,0.04587761]
[1763532856505,3.18,138.28,138.24,0.04587761]
[1763532857699,3.18,138.26,138.24,0.04587761]
[1763532859605,3.18,138.25,138.18,6.71486366]
[1763532859800,3.18,138.25,138.19,6.518]
[1763532860003,3.18,138.25,138.18,6.71486366]
[1763532860194,3.18,138.25,138.19,6.71486366]
[1763532860607,0.0514038,138.23,138.21,0.0458017]
[1763532862708,0.0514038,138.23,138.21,6.5628017]
[1763532863102,0.0514038,138.23,138.21,13.27766536]
[1763532864308,3.01,138.31,138.22,108.08596366]
[1763532864700,3.01,138.31,138.24,6.5156]
[1763532865309,3.01,138.28,138.26,0.05332658]
[1763532867901,3.01,138.28,138.21,6.71486366]
[1763532868109,3.01,138.25,138.19,13.23276366]
[1763532868909,0.04882285,138.23,138.21,0.05384141]
[1763532869104,3.05882285,138.23,138.21,0.05384141]
[1763532870911,0.04882285,138.23,138.21,0.05384141]
[1763532871109,0.04882285,138.23,138.21,6.76870507]
[1763532871511,0.04882285,138.23,138.21,13.28580507]
[1763532871707,0.04882285,138.23,138.22,6.71486366]
[1763532872403,0.04882285,138.23,138.21,13.28580507]
[1763532874211,0.04882285,138.23,138.22,6.71486366]
[1763532874513,0.04882285,138.23,138.21,0.05384141]
[1763532875009,0.04882285,138.23,138.21,6.76870507]
[1763532875214,0.04882285,138.23,138.22,6.71486366]
[1763532876710,38.26,138.3,138.22,8.95315155]
[1763532876900,41.33,138.3,138.24,6.5156]
[1763532877099,41.33,138.3,138.24,13.25764869]
[1763532877607,41.33,138.3,138.24,6.5156]
[1763532877809,3.1179311,138.28,138.26,0.05391593]
[1763532880102,3.07,138.32,138.26,0.05391593]
[1763532880302,3.07,138.32,138.26,101.3419]
[1763532880509,3.07,138.32,138.26,139.6019]
[1763532880706,13.2333557,138.35,138.26,139.6019]
[1763532880707,9.7925557,138.35,138.27,101.3319]
[1763532880910,3.07,138.34,138.26,139.6019]
[1763532881207,0.0512236,138.31,138.29,0.05475528]
[1763532882108,3.07,138.36,138.29,0.05475528]
[1763532882411,3.07,138.36,138.3,6.73250713]
[1763532882605,3.07,138.36,138.29,0.05475528]
[1763532882804,3.07,138.36,138.3,6.73307333]
[1763532883216,3.11621568,138.34,138.3,13.24597333]
[1763532883422,3.11621568,138.34,138.31,0.05392378]
[1763532883817,41.33,138.4,138.32,101.2928]
[1763532884118,3.07,138.39,138.33,6.73307333]
[1763532884515,3.07,138.39,138.35,6.5102]
[1763532884714,3.07,138.39,138.34,108.01097333]
[1763532885015,0.05089488,138.38,138.35,6.78863107]
[1763532885211,0.04879023,138.38,138.36,6.5097]
[1763532886021,3.07,138.42,138.38,6.509]
[1763532886311,3.07,138.42,138.35,108.06005821]
[1763532886312,3.07,138.42,138.35,108.00627333]
[1763532886517,3.07,138.42,138.37,6.5092]
[1763532886817,3.07,138.42,138.36,38.24]
[1763532887016,0.02973207,138.4,138.38,0.05382214]
[1763532887224,0.02973207,138.4,138.38,6.56272214]
[1763532888315,0.02973207,138.4,138.38,0.05382214]
[1763532888517,3.09973207,138.4,138.38,0.05382214]
[1763532891220,3.09973207,138.4,138.3,38.24]
[1763532891221,3.07,138.39,138.3,38.24]
[1763532891422,3.07,138.39,138.31,6.5123]
[1763532892226,3.12246804,138.36,138.34,0.04840833]
[1763532897320,0.05246804,138.36,138.34,0.04840833]
[1763532897532,0.05246804,138.36,138.34,6.55920833]
[1763532899423,3.07,138.4,138.36,6.5099]
[1763532900020,3.07,138.43,138.37,6.5094]
[1763532900218,3.07,138.43,138.36,101.2691]
[1763532900418,0.03108617,138.41,138.38,0.05394007]
[1763532900920,3.10108617,138.41,138.38,0.05394007]
[1763532903835,3.10108617,138.41,138.38,6.56274007]
[1763532904728,3.10108617,138.41,138.38,0.05394007]
[1763532907429,3.10108617,138.41,138.38,6.56294007]
[1763532910835,3.22,138.51,138.39,1.44]
[1763532911136,17.54844904,138.62,138.39,1.44]
[1763532911137,3.22,138.54,138.46,101.1919]
[1763532911432,3.22,138.54,138.44,101.2107]
[1763532911433,3.22,138.58,138.48,101.1806]
[1763532911634,3.22,138.58,138.5,101.165]
[1763532911826,3.22,138.58,138.46,101.1932]
[1763532912026,3.22,138.58,138.5,101.1656]
[1763532912238,3.22,138.58,138.49,101.1737]
[1763532912437,3.22,138.58,138.53,0.0487084]
[1763532913224,3.22,138.6,138.53,0.0487084]
[1763532913428,3.22,138.6,138.53,101.1907084]
[1763532913641,3.22,138.6,138.53,0.0487084]
[1763532914126,3.22,138.6,138.53,101.1903084]
[1763532914327,3.22,138.6,138.54,6.5016]
[1763532915234,3.22,138.6,138.53,101.1903084]
[1763532915235,3.22,138.6,138.53,0.0487084]
[1763532916343,3.22,138.56,138.53,0.0487084]
[1763532916529,3.22,138.56,138.53,0.0506081]
[1763532916729,104.3506,138.55,138.44,101.2085]
[1763532916936,3.22,138.53,138.43,43.33750193]
[1763532917229,3.22,138.53,138.43,144.55540193]
[1763532917230,3.22,138.52,138.43,144.55540193]
[1763532917546,3.22,138.51,138.41,21.38627974]
[1763532917843,3.22,138.46,138.45,0.05436021]
[1763532918629,0.0506081,138.47,138.45,0.05436021]
[1763532920436,0.0506081,138.47,138.45,6.55996021]
[1763532920638,0.0506081,138.47,138.45,0.05436021]
[1763532926641,3.3106081,138.47,138.45,0.05436021]
[1763532927328,3.3106081,138.47,138.38,139.4915]
[1763532927533,3.26,138.47,138.4,6.508]
[1763532928230,3.26,138.47,138.41,101.2324]
[1763532928435,0.04759217,138.45,138.43,0.04584979]
[1763532929039,0.04759217,138.45,138.43,6.55244979]
[1763532931243,3.26,138.55,138.44,101.2089]
[1763532931446,3.26,138.55,138.46,101.196]
[1763532932146,3.26,138.55,138.47,101.1883]
[1763532932345,0.05150309,138.52,138.5,6.55429109]
[1763532933441,0.05150309,138.52,138.5,0.05099109]
[1763532934652,0.05150309,138.52,138.5,6.55439109]
[1763532935245,3.29150309,138.52,138.5,0.05099109]
[1763532935853,3.29150309,138.52,138.46,38.22]
[1763532936348,3.29150309,138.52,138.43,106.31280193]
[1763532936552,3.24,138.52,138.43,106.31280193]
[1763532936847,0.04746574,138.49,138.46,0.05258058]
[1763532937050,3.28746574,138.49,138.46,0.05258058]
[1763532939045,3.24,138.53,138.47,6.5046]
[1763532939953,3.24,138.5,138.49,0.04973679]
[1763532941359,0.05291183,138.51,138.49,0.04973679]
[1763532941760,3.29291183,138.51,138.49,0.04973679]
[1763532942059,0.05291183,138.51,138.49,0.04973679]
[1763532942751,0.05291183,138.51,138.49,6.55353679]
[1763532943255,3.29291183,138.51,138.49,0.04973679]
[1763532944857,9.79611183,138.51,138.49,0.04973679]
[1763532945061,3.24,138.5,138.49,0.04973679]
[1763532946562,3.29291183,138.51,138.49,0.04973679]
[1763532948060,0.05291183,138.51,138.49,0.04973679]
[1763532948266,0.05291183,138.51,138.49,6.55363679]
[1763532949464,0.05291183,138.51,138.49,13.28671012]
[1763532952170,3.29291183,138.51,138.49,0.04973679]
[1763532955161,0.05291183,138.51,138.49,0.04973679]
[1763532955364,0.05291183,138.51,138.5,6.73307333]
[1763532955560,0.05291183,138.51,138.49,6.78281012]
[1763532955767,0.05291183,138.51,138.49,13.28671012]
[1763532957672,0.05291183,138.51,138.49,6.78281012]
[1763532957977,3.29291183,138.51,138.49,0.04973679]
[1763532963062,3.24,138.5,138.45,6.73307333]
[1763532963472,6.5041,138.49,138.45,6.73307333]
[1763532963668,3.11,138.48,138.45,6.73307333]
[1763532964072,3.15580634,138.48,138.45,6.78590507]
[1763532965168,3.15580634,138.48,138.45,0.05283174]
[1763532967276,0.04580634,138.48,138.45,6.78590507]
[1763532967469,0.04580634,138.48,138.46,6.73307333]
[1763532967669,0.04580634,138.48,138.46,13.23837333]
[1763532967869,0.04580634,138.48,138.46,6.73307333]
[1763532968067,3.15580634,138.48,138.45,6.78590507]
[1763532968381,0.04580634,138.48,138.45,6.78590507]
[1763532968679,3.15580634,138.48,138.45,6.78590507]
[1763532969284,0.04580634,138.48,138.45,6.78590507]
[1763532969475,3.15580634,138.48,138.45,6.78590507]
[1763532969875,0.04580634,138.48,138.46,6.73307333]
[1763532970076,0.04580634,138.48,138.46,13.23837333]
[1763532970879,0.04580634,138.48,138.45,6.78590507]
[1763532970880,3.15580634,138.48,138.45,6.78590507]
[1763532971184,0.04580634,138.48,138.46,6.73307333]
[1763532972387,3.11,138.47,138.43,8.95315155]
[1763532972588,3.11,138.44,138.38,8.95315155]
[1763532973089,3.11,138.44,138.38,110.20395155]
[1763532973381,3.11,138.44,138.39,110.20045155]
[1763532973580,3.11,138.44,138.39,8.95315155]
[1763532973885,0.04720117,138.43,138.4,0.05402295]
[1763532974680,3.15720117,138.43,138.4,0.05402295]
[1763532974885,0.04720117,138.43,138.4,0.05402295]
[1763532975283,0.04720117,138.43,138.4,6.56202295]
[1763532976577,0.04720117,138.43,138.4,0.05402295]
[1763532976578,3.15720117,138.43,138.4,0.05402295]
[1763532976979,3.11,138.41,138.4,0.05402295]
[1763532977285,3.11,138.41,138.34,8.95315155]
[1763532977586,3.11,138.41,138.33,47.13315155]
[1763532977788,3.11,138.39,138.34,6.5108]
[1763532978087,3.11,138.37,138.35,0.05379224]
[1763532978979,3.11,138.36,138.35,0.05379224]
[1763532979684,3.11,138.35,138.28,6.5136]
[1763532980277,3.11,138.34,138.26,6.5147]
[1763532980483,3.11,138.34,138.26,101.3413]
[1763532980683,0.04994664,138.31,138.29,0.05250258]
[1763532981695,0.04994664,138.31,138.29,6.56570258]
[1763532982789,3.23,138.4,138.32,101.298]
[1763532983383,3.23,138.4,138.34,6.5108]
[1763532983792,3.28330099,138.38,138.36,0.05019761]
[1763532991798,3.28330099,138.38,138.3,6.5127]
[1763532991995,3.28330099,138.38,138.29,139.5203]
[1763532992196,3.23,138.38,138.29,139.5203]
[1763532992694,3.23,138.38,138.29,101.3203]
[1763532992893,3.23,138.34,138.32,0.04916241]
[1763532997097,3.23,138.34,138.25,1.25833921]
[1763532997596,3.23,138.34,138.23,101.3614]
[1763532997985,3.16,138.29,138.27,0.05444395]
[1763533003495,3.2131473,138.3,138.27,0.05444395]
[1763533005102,3.2131473,138.3,138.27,6.56864395]
[1763533006298,3.2131473,138.3,138.27,0.05444395]
[1763533008403,3.16,138.36,138.27,0.05444395]
[1763533008603,3.16,138.36,138.28,101.3279]
[1763533008997,3.16,138.36,138.28,6.5136]
[1763533009301,3.16,138.36,138.25,101.3495]
[1763533009508,3.16,138.31,138.29,0.04660286]
[1763533011113,3.16,138.31,138.23,6.5161]
[1763533011408,3.16,138.29,138.21,7.77558056]
[1763533011610,3.16,138.29,138.21,6.5169]
[1763533012197,3.21158673,138.26,138.24,0.04750571]
[1763533012404,3.21233879,138.26,138.24,0.04750571]
[1763533022202,3.21233879,138.26,138.16,104.48442571]
[1763533022408,3.16,138.24,138.14,38.24]
[1763533022812,3.16,138.23,138.18,6.5183]
[1763533023408,3.16,138.21,138.19,0.05295714]
[1763533023608,3.16,138.21,138.19,6.57095714]
[1763533024515,3.16,138.21,138.19,0.05295714]
[1763533026818,3.1,138.2,138.14,6.5201]
[1763533027023,3.1,138.2,138.11,102.70924613]
[1763533027210,3.1,138.2,138.11,105.78057184]
[1763533027716,3.1,138.2,138.12,101.4429]
[1763533027912,0.04587715,138.17,138.15,0.04899805]
[1763533028113,3.1,138.23,138.19,6.5181]
[1763533028321,3.1,138.23,138.17,101.4085]
[1763533028521,3.1,138.23,138.18,101.4006]
[1763533028718,3.1,138.23,138.2,6.5173]
[1763533028919,3.1,138.23,138.18,101.4006]
[1763533029217,0.0520424,138.22,138.21,6.5171]
[1763533030013,3.1520424,138.22,138.19,6.56785652]
[1763533030220,3.1520424,138.22,138.19,0.05005652]
[1763533031421,0.0520424,138.22,138.2,6.5175]
[1763533031922,3.1,138.26,138.21,101.379]
[1763533032323,38.24,138.29,138.24,6.5156]
[1763533032324,3.1,138.28,138.24,6.5156]
[1763533032709,0.05063219,138.27,138.25,0.04734057]
[1763533032911,3.15063219,138.27,138.25,0.04734057]
[1763533046920,3.15063219,138.27,138.19,1.96559196]
[1763533047122,3.12,138.25,138.19,1.96559196]
[1763533047831,0.05356284,138.23,138.21,0.0467194]
[1763533048023,0.05356284,138.23,138.21,6.5638194]
[1763533049022,0.05356284,138.23,138.21,9.96941136]
[1763533049226,3.12,138.28,138.25,6.5152]
[1763533049717,3.12,138.29,138.28,6.5139]
[1763533049920,3.12,138.32,138.28,6.5139]
[1763533050229,3.16668104,138.31,138.29,0.04872745]
[1763533050431,3.17177229,138.31,138.29,0.04896736]
[1763533051035,3.17177229,138.31,138.29,6.56226736]
[1763533051224,0.05177229,138.31,138.29,6.56226736]
[1763533052428,3.17177229,138.31,138.29,0.04896736]
[1763533056040,0.05177229,138.31,138.29,6.56226736]
[1763533063245,101.2281,138.42,138.32,6.5116]
[1763533063246,3.04,138.37,138.32,6.5116]
[1763533063741,3.04,138.33,138.29,6.5131]
[1763533064252,3.0945102,138.32,138.3,0.05200588]
[1763533065345,3.0945102,138.32,138.3,6.56490588]
[1763533065540,0.0545102,138.32,138.3,6.56490588]
[1763533065734,3.04,138.38,138.31,101.3058]
[1763533066241,3.04,138.38,138.34,6.5108]
[1763533066546,3.04,138.37,138.32,6.5119]
[1763533066749,3.04,138.35,138.33,0.04928822]
[1763533067141,3.04,138.35,138.33,6.56078822]
[1763533067445,3.04,138.35,138.33,0.04928822]
[1763533071848,9.5507,138.35,138.33,0.04928822]
[1763533072046,3.04,138.33,138.27,6.5141]
[1763533072752,3.04,138.33,138.28,6.5138]
[1763533073153,3.04,138.31,138.29,0.04621703]
[1763533077548,0.04620187,138.32,138.29,6.55921703]
[1763533077754,0.04620187,138.32,138.29,0.04621703]
[1763533078856,0.04620187,138.32,138.3,6.5128]
[1763533079446,0.04620187,138.32,138.29,0.04621703]
[1763533080457,0.04620187,138.32,138.3,6.5128]
[1763533080662,40.16559196,138.37,138.31,101.3049]
[1763533080663,3.04,138.37,138.31,101.3049]
[1763533080956,3.04,138.4,138.36,6.51]
[1763533081148,3.04,138.4,138.34,103.24879196]
[1763533081349,38.2,138.41,138.35,101.2762]
[1763533081549,3.04,138.43,138.37,6.5094]
[1763533081748,0.04874513,138.41,138.39,0.04992733]
[1763533081949,0.04828873,138.41,138.39,0.05371797]
[1763533082151,3.04,138.45,138.39,6.56211797]
[1763533082554,5.00559196,138.45,138.39,0.05371797]
[1763533082752,3.04,138.44,138.39,0.05371797]
[1763533082959,5.00559196,138.47,138.39,0.05371797]
[1763533083156,0.05380798,138.43,138.42,0.04857012]
[1763533083353,0.05305769,138.44,138.42,0.04857012]
[1763533084557,0.05305769,138.44,138.42,8.52126208]
[1763533084960,0.05305769,138.44,138.42,6.55567012]
[1763533085163,0.05305769,138.44,138.42,0.04857012]
[1763533085362,3.00305769,138.44,138.42,0.04857012]
[1763533087563,0.05305769,138.44,138.42,0.04857012]
[1763533088965,3.00305769,138.44,138.42,0.04857012]
[1763533092173,0.05305769,138.44,138.42,0.04857012]
[1763533093172,3.00305769,138.44,138.42,0.04857012]
[1763533096161,3.00305769,138.44,138.34,38.16]
[1763533096366,2.95,138.42,138.34,38.16]
[1763533096766,2.95,138.42,138.34,44.6709]
[1763533096966,2.95,138.41,138.34,38.16]
[1763533097178,2.99876391,138.39,138.37,0.04941321]
[1763533099480,0.04876391,138.39,138.37,0.04941321]
[1763533101372,2.99876391,138.39,138.37,0.04941321]
[1763533102671,0.04876391,138.39,138.37,0.04941321]
[1763533103079,0.04876391,138.39,138.37,6.55891321]
[1763533103582,2.96,138.43,138.39,6.5085]
[1763533103982,2.96,138.43,138.37,0.04941321]
[1763533104584,0.0522369,138.41,138.37,0.04941321]
[1763533104876,0.0522369,138.41,138.38,6.509]
[1763533105182,3.0122369,138.41,138.38,6.509]
[1763533106080,3.0122369,138.41,138.39,6.5086]
[1763533106586,0.0522369,138.41,138.39,6.5086]
[1763533107484,3.0122369,138.41,138.37,6.55891321]
[1763533107674,3.0122369,138.41,138.37,0.04941321]
[1763533107871,0.0522369,138.41,138.38,101.2532]
[1763533108077,2.96,138.48,138.39,101.2402]
[1763533108983,0.0540776,138.45,138.42,0.0510904]
[1763533109177,3.0140776,138.45,138.42,0.0510904]
[1763533111089,0.0540776,138.45,138.42,0.0510904]
[1763533111280,0.0540776,138.45,138.42,101.2720904]
[1763533111483,2.96,138.48,138.44,101.2104]
[1763533112488,0.05248202,138.47,138.43,101.395]
[1763533113387,3.01248202,138.47,138.43,0.18]
[1763533113990,3.01248202,138.47,138.45,6.5058]
[1763533114989,0.05248202,138.47,138.45,6.5058]
[1763533120891,0.05248202,138.47,138.43,6.6865]
[1763533121198,3.16248202,138.47,138.43,0.18]
[1763533127798,3.11,138.46,138.43,0.18]
[1763533127994,3.11,138.45,138.34,101.2838]
[1763533128198,3.11,138.44,138.36,6.51]
[1763533128696,3.11,138.44,138.34,101.2838]
[1763533128895,3.15689215,138.4,138.38,0.05522536]
[1763533129099,3.15933817,138.4,138.38,0.05522536]
[1763533130099,3.11,138.46,138.38,101.30692536]
[1763533130302,3.11,138.46,138.38,101.2517]
[1763533130599,3.11,138.46,138.41,6.5076]
[1763533130896,3.11,138.46,138.39,6.5085]
[1763533131106,3.11,138.43,138.41,0.04861516]
[1763533132397,0.05102353,138.44,138.41,0.04861516]
[1763533132593,3.16102353,138.44,138.41,0.04861516]
[1763533134597,3.16102353,138.44,138.42,6.507]
[1763533134800,3.16102353,138.44,138.41,0.04861516]
[1763533140505,41.25,138.43,138.41,0.04861516]
[1763533140709,3.11,138.42,138.34,38.14]
[1763533141606,3.11,138.42,138.3,118.80444735]
[1763533141803,3.15994736,138.39,138.37,0.04736201]
[1763533143212,3.15994736,138.39,138.3,101.3103]
[1763533143402,3.11,138.39,138.3,101.3103]
[1763533143705,3.19,138.38,138.29,101.3201]
[1763533143911,3.19,138.38,138.27,148.42525155]
[1763533144114,3.19,138.38,138.28,101.3257]
[1763533144410,0.05349947,138.34,138.32,0.05210931]
[1763533144611,0.05004208,138.34,138.32,0.05237532]
[1763533145213,3.24004208,138.34,138.32,0.05237532]
[1763533145599,0.05004208,138.34,138.28,101.3272]
[1763533145796,0.05004208,138.34,138.29,101.3187]
[1763533146011,0.05004208,138.34,138.31,6.5123]
[1763533146205,3.24004208,138.34,138.31,6.5123]
[1763533146607,3.24004208,138.34,138.31,6.56465435]
[1763533147512,3.24004208,138.34,138.32,6.5119]
[1763533147704,0.05004208,138.34,138.32,6.5119]
[1763533156622,3.19,138.4,138.37,6.5095]
[1763533156815,3.19,138.4,138.35,101.2735]
[1763533157222,3.19,138.4,138.37,6.5095]
[1763533157618,3.24335886,138.4,138.37,6.5095]
[1763533157828,3.24335886,138.4,138.37,6.56058555]
[1763533160034,3.24335886,138.4,138.37,0.05108555]
[1763533161830,3.24335886,138.4,138.37,6.56058555]
[1763533162026,0.05335886,138.4,138.37,0.05108555]
[1763533162433,3.16335886,138.4,138.37,0.05108555]
[1763533162933,3.16335886,138.4,138.38,6.509]
[1763533164435,3.16335886,138.4,138.37,0.05108555]
[1763533166134,3.16335886,138.4,138.37,6.56058555]
[1763533166329,3.16335886,138.4,138.37,0.05108555]
[1763533166838,0.05335886,138.4,138.37,0.05108555]
[1763533167438,0.05335886,138.4,138.38,6.5091]
[1763533168831,3.16335886,138.4,138.37,0.05108555]
[1763533172044,3.11,138.39,138.37,0.05108555]
[1763533173642,3.18,138.38,138.33,6.5111]
[1763533174242,3.18,138.35,138.28,6.5136]
[1763533174731,3.18,138.32,138.3,0.05432197]
[1763533177939,3.18,138.31,138.25,6.5151]
[1763533178130,3.18,138.31,138.22,101.3684]
[1763533178834,38.14,138.34,138.22,101.3684]
[1763533178835,3.22691426,138.28,138.25,0.04940974]
[1763533179142,3.22652623,138.28,138.25,0.05087489]
[1763533184951,3.18,138.26,138.25,0.05087489]
[1763533186550,3.18,138.27,138.25,0.05087489]
[1763533199853,3.18,138.27,138.19,6.518]
[1763533200054,3.18,138.25,138.18,1.96579494]
[1763533200654,3.18,138.25,138.16,40.10579494]
[1763533200952,3.2296577,138.22,138.19,0.05129495]
[1763533201153,0.0496577,138.22,138.19,0.05129495]
[1763533201752,0.0496577,138.22,138.2,8.48329494]
[1763533202950,3.2296577,138.22,138.19,0.05129495]
[1763533204155,3.22,138.2,138.11,102.70874613]
[1763533204365,3.22,138.2,138.11,1.96579494]
[1763533205251,3.26590753,138.17,138.14,0.04620827]
[1763533205455,0.04590753,138.17,138.14,0.04620827]
[1763533205660,0.04590753,138.17,138.14,6.56640827]
[1763533206072,3.26590753,138.17,138.14,0.04620827]
[1763533207565,3.22,138.16,138.14,0.04620827]
[1763533208758,3.26590753,138.17,138.1,101.4588]
[1763533208957,41.38,138.16,138.1,101.4588]
[1763533209164,3.22,138.16,138.09,103.43019494]
[1763533209762,0.050464,138.14,138.12,6.5212]
[1763533209952,3.22,138.19,138.14,101.4305]
[1763533210358,3.22,138.19,138.13,101.4315]
[1763533210553,3.22,138.19,138.12,1.96579494]
[1763533211062,0.04709504,138.17,138.14,0.05288881]
[1763533211263,3.26709504,138.17,138.14,0.05288881]
[1763533211463,0.04709504,138.17,138.14,0.05288881]
[1763533212065,3.26709504,138.17,138.14,0.05288881]
[1763533212376,3.26709504,138.17,138.14,6.57318881]
[1763533214073,0.04709504,138.17,138.14,6.57318881]
[1763533215474,3.26709504,138.17,138.14,6.57318881]
[1763533215673,3.26709504,138.17,138.15,6.5196]
[1763533217163,0.04709504,138.17,138.15,6.5196]
[1763533218173,3.26709504,138.17,138.14,0.05288881]
[1763533218578,5.23288998,138.17,138.14,0.05288881]
[1763533218964,3.22,138.16,138.14,0.05288881]
[1763533224375,3.06,138.15,138.14,0.05288881]
[1763533228678,41.22,138.15,138.14,0.05288881]
[1763533229485,3.06,138.15,138.14,0.05288881]
[1763533229681,3.06,138.16,138.14,0.05288881]
[1763533230886,0.04709504,138.17,138.14,0.05288881]
[1763533231679,3.10709504,138.17,138.14,0.05288881]
[1763533231888,3.10709504,138.17,138.15,6.5199]
[1763533232786,0.04709504,138.17,138.15,6.5199]
[1763533236799,0.04709504,138.17,138.14,0.05288881]
[1763533237480,0.04709504,138.17,138.14,6.57328881]
[1763533237883,3.24709504,138.17,138.14,0.05288881]
[1763533238879,3.24709504,138.17,138.14,6.57318881]
[1763533239280,0.04709504,138.17,138.14,0.05288881]
[1763533243390,0.04709504,138.17,138.15,6.5199]
[1763533248696,0.04709504,138.17,138.14,0.05288881]
[1763533249696,0.04709504,138.17,138.15,6.5199]
[1763533250495,0.04709504,138.17,138.14,6.57328881]
[1763533251000,0.04709504,138.17,138.14,0.05288881]
[1763533251998,0.04709504,138.17,138.15,6.5199]
[1763533257402,3.24709504,138.17,138.14,0.05288881]
[1763533259101,3.24709504,138.17,138.14,6.57328881]
[1763533259601,3.24709504,138.17,138.14,0.05288881]
[1763533260198,9.76619504,138.17,138.14,0.05288881]
[1763533260396,3.2,138.16,138.14,0.05288881]
[1763533260902,9.7196,138.16,138.14,0.05288881]
[1763533261089,3.2,138.15,138.14,0.05288881]
[1763533261910,3.2,138.12,138.06,8.95315155]
[1763533262094,3.2,138.12,138.05,8.95315155]
[1763533262303,3.2,138.12,138.04,8.95315155]
[1763533262496,3.2,138.12,138.03,154.33792611]
[1763533262497,3.2,138.12,138.06,6.5242]
[1763533262805,3.2,138.12,138.05,8.95315155]
[1763533263000,0.05262653,138.1,138.08,6.57429592]
[1763533263192,0.05008367,138.1,138.08,0.05109592]
[1763533263800,0.05008367,138.1,138.08,6.57409592]
[1763533264705,3.09,138.16,138.08,6.57409592]
[1763533264908,3.09,138.19,138.11,101.4517]
[1763533265312,3.09,138.18,138.12,6.5213]
[1763533265808,3.1455915,138.16,138.14,0.04963525]
[1763533279417,0.0555915,138.16,138.14,0.04963525]
[1763533280511,0.0555915,138.16,138.14,6.56993525]
[1763533281211,3.09,138.22,138.14,101.47533525]
[1763533281518,3.09,138.22,138.14,101.4257]
[1763533281716,3.09,138.22,138.13,8.95315155]
[1763533282014,3.09,138.22,138.13,6.5207]
[1763533282015,3.09,138.21,138.13,6.5207]
[1763533282216,0.04989913,138.18,138.16,0.05256032]
[1763533282418,3.09,138.17,138.16,0.05256032]
[1763533283320,0.04989913,138.18,138.16,0.05256032]
[1763533285516,3.22989913,138.18,138.16,0.05256032]
[1763533285821,0.04989913,138.18,138.16,6.57196032]
[1763533286021,0.04989913,138.18,138.16,0.05256032]
[1763533286919,3.22989913,138.18,138.16,0.05256032]
[1763533287820,0.04989913,138.18,138.16,0.05256032]
[1763533288819,3.22989913,138.18,138.16,0.05256032]
[1763533291525,0.04989913,138.18,138.16,0.05256032]
[1763533291727,3.22989913,138.18,138.16,0.05256032]